Workbook

Sheet Program

Sheet Rozvaha
B4: ROZVAHA | D4: Obchodní firma a sídlo
B5: v plném rozsahu
B6: ke dni 31. prosince | D6: ISAN Radiátory, s.r.o
B7: (v tisících Kč) | D7: Cejl 817/105
B8: Identifikační číslo: | D8: Brno - Zábrdovice 602 00
B9: 25334727 | D9: Česká republika
B10: Označení | C10: AKTIVA | D10: Číslo řádku | E10: 2010 | F10: 2011 | G10: 2012 | H10: 2013 | I10: 2014 | J10: 2015
C13: AKTIVA | D13: 001 | E13: 157004 | F13: 164001 | G13: 180189 | H13: 213068 | I13: 246030 | J13: 300409
B14: A. | C14: Pohledávky za upsaný kapitál | D14: 002
B15: B. | C15: Dlouhodobý majetek | D15: 003 | E15: 69422 | F15: 81054 | G15: 94185 | H15: 110845 | I15: 118018 | J15: 142888
B16: B. I. | C16: Dlouhodobý nehmotný majetek | D16: 004 | E16: 1470 | F16: 7896 | G16: 8321 | H16: 7086 | I16: 6007 | J16: 5192
B17: B. I. 1. | C17: Zřizovací výdaje | D17: 005
B18: 2. | C18: Nehmotné výsledky výzkumu a vývoje | D18: 006
B19: 3. | C19: Software | D19: 007 | E19: 680 | F19: 338 | G19: 1758 | H19: 1493 | I19: 1415 | J19: 1344
B20: 4. | C20: Ocenitelná práva | D20: 008 | E20: 790 | F20: 6934 | G20: 6563 | H20: 5593 | I20: 4592 | J20: 3848
B21: 5. | C21: Goodwill | D21: 009
B22: 6. | C22: Jiný dlouhodobý nehmotný majetek | D22: 010
B23: 7. | C23: Nedokončený dlouhodobý nehmotný majetek | D23: 011 | F23: 624
B24: 8. | C24: Poskytnuté zálohy na dlouhodobý nehmotný majetek | D24: 012
B25: B. II. | C25: Dlouhodobý hmotný majetek | D25: 013 | E25: 59992 | F25: 73158 | G25: 85864 | H25: 103759 | I25: 112011 | J25: 137696
B26: B. II. 1. | C26: Pozemky | D26: 014 | E26: 3900 | F26: 3900 | G26: 3900 | H26: 3900 | I26: 3900 | J26: 3900
B27: 2. | C27: Stavby | D27: 015 | E27: 125656 | F27: 122865 | G27: 122004 | H27: 121872 | I27: 119481 | J27: 115330
B28: 3. | C28: Samostatné movité věci a soubory movitých věcí | D28: 016 | E28: 8290 | F28: 6396 | G28: 4821 | H28: 15754 | I28: 18027 | J28: 34064
B29: 4. | C29: Pěstitelské celky trvalých porostů | D29: 017
B30: 5. | C30: Základní stádo a tažná zvířata | D30: 018
B31: 6. | C31: Jiný dlouhodobý hmotný majetek | D31: 019 | E31: 196 | F31: 332 | G31: 154 | H31: 32 | I31: 10 | J31: 99
B32: 7. | C32: Nedokončený dlouhodobý hmotný majetek | D32: 020 | E32: 536 | F32: 1895 | G32: 6380 | H32: 2761 | I32: 318 | J32: 2460
B33: 8. | C33: Poskytnuté zálohy na dlouhodobý hmotný majetek | D33: 021 | J33: 733
B34: 9. | C34: Oceňovací rozdíl k nabytému majetku | D34: 022 | E34: -78586 | F34: -62230 | G34: -51395 | H34: -40560 | I34: -29725 | J34: -18890
B35: B. III. | C35: Dlouhodobý finanční majetek | D35: 023 | E35: 7960
B36: B. III. 1. | C36: Podíly v ovládaných a řízených osobách | D36: 024 | E36: 7960
B37: 2. | C37: Podíly v účetních jednotkách pod podstatným vlivem | D37: 025
B38: 3. | C38: Ostatní dlouhodobé cenné papíry a podíly | D38: 026
B39: 4. | C39: Půjčky a úvěry ovl.a říz.osobám a úč.jedn.pod podst.vlivem | D39: 027
B40: 5. | C40: Jiný dlouhodobý finanční majetek | D40: 028
B41: 6. | C41: Pořizovaný dlouhodobý finanční majetek | D41: 029
B42: 7. | C42: Poskytnuté zálohy na dlohodobý finanční majetek | D42: 030
B43: C. | C43: Obežná aktiva | D43: 031 | E43: 84496 | F43: 80133 | G43: 83840 | H43: 101028 | I43: 127144 | J43: 157293
B44: C. I. | C44: Zásoby | D44: 032 | E44: 42674 | F44: 43344 | G44: 40036 | H44: 40988 | I44: 49605 | J44: 53584
B45: C. I. 1. | C45: Materiál | D45: 033 | E45: 18196 | F45: 17265 | G45: 18561 | H45: 21939 | I45: 27689 | J45: 36399
B46: 2. | C46: Nedokončená výroba a polotovary | D46: 034 | E46: 9443 | F46: 11445 | G46: 5927 | H46: 7113 | I46: 8332 | J46: 8268
B47: 3. | C47: Výrobky | D47: 035 | E47: 15024 | F47: 14634 | G47: 15494 | H47: 11936 | I47: 13584 | J47: 8666
B48: 4. | C48: Zvířata | D48: 036
B49: 5. | C49: Zboží | D49: 037
B50: 6. | C50: Poskytnuté zálohy na zásoby | D50: 038 | E50: 11 | G50: 54 | J50: 251
B51: C. II. | C51: Dlouhodobé pohledávky | D51: 039 | E51: 0 | F51: 0 | G51: 0 | H51: 0 | I51: 0 | J51: 24595
B52: C. II.1. | C52: Pohledávky z obchodních vztahů | D52: 040
B53: 2. | C53: Pohledávky za ovládanými a řízenými osobami | D53: 041
B54: 3. | C54: Pohledávky za účetními jednotkami pod podstatným vlivem | D54: 042
B55: 4. | C55: Pohledávky za společníky, členy družstva a účastníky sdružení | D55: 043
B56: 5. | C56: Dlouhodobé poskytnuté zálohy | D56: 044
B57: 6. | C57: Dohadné účty aktivní | D57: 045
B58: 7. | C58: Jiné pohledávky | D58: 046 | J58: 24959
B59: 8. | C59: Odložená daňová pohledávka | D59: 047
B60: C. III. | C60: Krátkodobé pohledávky | D60: 048 | E60: 34523 | F60: 22051 | G60: 30424 | H60: 42591 | I60: 56579 | J60: 36599
B61: C. III. 1. | C61: Pohledávky z obchodních vztahů | D61: 049 | E61: 27986 | F61: 15864 | G61: 22102 | H61: 23007 | I61: 31709 | J61: 30470
B62: 2. | C62: Pohledávky za ovládanými a řízenými osobami | D62: 050
B63: 3. | C63: Pohledávky za účetními jednotkami pod podstatným vlivem | D63: 051
B64: 4. | C64: Pohledávky za společníky, členy družstva a účastníky sdružení | D64: 052
B65: 5. | C65: Sociální zabezpečení a zdravotní pojištění | D65: 053
B66: 6. | C66: Stát - daňové pohledávky | D66: 054 | E66: 5150 | F66: 4946 | G66: 6830 | H66: 6945 | I66: 7028 | J66: 5227
B67: 7. | C67: Ostatní poskytnuté zálohy | D67: 055 | E67: 1192 | F67: 848 | G67: 1026 | H67: 495 | I67: 1286 | J67: 818
B68: 8. | C68: Dohadné účty aktivní | D68: 056
B69: 9. | C69: Jiné pohledávky | D69: 057 | E69: 195 | F69: 393 | G69: 466 | H69: 12144 | I69: 16556 | J69: 84
B70: C. IV. | C70: Krátkodobý finanční majetek | D70: 058 | E70: 7299 | F70: 14738 | G70: 13380 | H70: 17449 | I70: 20960 | J70: 42515
B71: C. IV. 1. | C71: Peníze | D71: 059 | E71: 257 | F71: 179 | G71: 137 | H71: 460 | I71: 451 | J71: 85
B72: 2. | C72: Účty v bankách | D72: 060 | E72: 7042 | F72: 14559 | G72: 13243 | H72: 16989 | I72: 20509 | J72: 42430
B73: 3. | C73: Krátkodobé cenné papíry a podíly | D73: 061
B74: 4. | C74: Pořizovaný krátkodobý finanční majetek | D74: 062
B75: D. I. | C75: Časové rozlišení | D75: 063 | E75: 3086 | F75: 2814 | G75: 2164 | H75: 1195 | I75: 868 | J75: 228
B76: D. I. 1. | C76: Náklady příštích období | D76: 064 | E76: 2832 | F76: 2582 | G76: 2164 | H76: 1094 | I76: 866 | J76: 225
B77: 2. | C77: Komplexní náklady příštích období | D77: 065
B78: 3. | C78: Příjmy příštích období | D78: 066 | E78: 254 | F78: 232 | H78: 101 | I78: 2 | J78: 3
B81: Označení | C81: PASIVA | D81: Číslo řádku | E81: 2010 | F81: 2011 | G81: 2012 | H81: 2013 | I81: 2014 | J81: 2015
C84: PASIVA | D84: 067 | E84: 157004 | F84: 164001 | G84: 180189 | H84: 213068 | I84: 246030 | J84: 300409
B85: A. | C85: Vlastní kapitál | D85: 068 | E85: 58815 | F85: 38494 | G85: 61182 | H85: 63949 | I85: 88587 | J85: 106004
B86: A. I. | C86: Základní kapitál | D86: 069 | E86: 13200 | F86: 13200 | G86: 13200 | H86: 13200 | I86: 13200 | J86: 13200
B87: A. I. 1. | C87: Základní kapitál | D87: 070 | E87: 13200 | F87: 13200 | G87: 13200 | H87: 13200 | I87: 13200 | J87: 13200
B88: 2. | C88: Vlastní akcie a vlastní obchodní podíly | D88: 071
B89: 3. | C89: Změny základního kapitálu | D89: 072
B90: A. II. | C90: Kapitálové fondy | D90: 073 | F90: -2698
B91: A. II. 1. | C91: Ážio | D91: 074
B92: 2. | C92: Ostatní kapitálové fondy | D92: 075
B93: 3. | C93: Oceňovací rozdíly z přecenění majetku a závazků | D93: 076 | F93: -2698
B94: 4. | C94: Oceňovací rozdíly z přecenění při přeměnách obchodních korp | D94: 077
B95: 5. | C95: Rozdíly z přeměn obchodních korporací | D95: 078
B96: 6. | C96: Rozdíly z ocenění při přeměnách obchodních korporací | D96: 079
B97: A. III. | C97: Fondy ze zisku | D97: 080 | E97: 1954 | F97: 1954 | G97: 1954 | H97: 1954 | I97: 1954 | J97: 1954
B98: A. III. 1. | C98: Rezervní fond | D98: 081 | E98: 1320 | F98: 1320 | G98: 1320 | H98: 1320 | I98: 1320 | J98: 1320
B99: 2. | C99: Statutární a ostatní fondy | D99: 082 | E99: 634 | F99: 634 | G99: 634 | H99: 634 | I99: 634 | J99: 634
B100: A. IV. | C100: Výsledek hospodaření min. let | D100: 083 | E100: 31120 | F100: 13661 | G100: 25038 | H100: 31028 | I100: 46794 | J100: 63433
B101: A. IV. 1. | C101: Nerozdělený zisk minulých let | D101: 084 | E101: 31120 | F101: 13661 | G101: 25038 | H101: 31028 | I101: 46794 | J101: 63433
B102: 2. | C102: Neuhrazená ztráta minulých let | D102: 085
B103: 3. | C103: Jiný výsledek hospodaření minulých let | D103: 086
B104: A.V. | C104: Výsledek hospodaření běžného účetního období | D104: 087 | E104: 12541 | F104: 12377 | G104: 20990 | H104: 17767 | I104: 26639 | J104: 27417
B105: B. | C105: Cizí zdroje | D105: 088 | E105: 96182 | F105: 124761 | G105: 117524 | H105: 147447 | I105: 155621 | J105: 192783
B106: B. I. | C106: Rezervy | D106: 089
B107: 1. | C107: Rezervy podle zvláštních právních předpisů | D107: 090
B108: 2. | C108: Rezerva na důchody a podobné závazky | D108: 091
B109: 3. | C109: Rezerva na daň z příjmu | D109: 092
B110: 4. | C110: Ostatní rezervy | D110: 093
B111: B. II. | C111: Dlouhodobé závazky | D111: 094 | E111: 705 | F111: 1756 | G111: 576 | H111: 759 | I111: 868 | J111: 9881
B112: B. II. 1. | C112: Závazky z obchodních vztahů | D112: 095
B113: 2. | C113: Závazky k ovládaným a řízeným osobám | D113: 096
B114: 3. | C114: Závazky k účetním jednotkám pod podstatným vlivem | D114: 097
B115: 4. | C115: Závazky ke společníkům, členům družstva a k účastníkům sdružení | D115: 098 | J115: 9000
B116: 5. | C116: Dlouhodobé přijaté zálohy | D116: 099
B117: 6. | C117: Vydané dluhopisy | D117: 100
B118: 7. | C118: Dlouhodobé směnky k úhradě | D118: 101
B119: 8. | C119: Dohadné účty pasivní | D119: 102
B120: 9. | C120: Jiné závazky | D120: 103
B121: 10. | C121: Odložený daňový závazek | D121: 104 | E121: 705 | F121: 1756 | G121: 576 | H121: 759 | I121: 868 | J121: 881
B122: B. III. | C122: Krátkodobé závazky | D122: 105 | E122: 62479 | F122: 69523 | G122: 61316 | H122: 67967 | I122: 71302 | J122: 87290
B123: B. III. 1. | C123: Závazky z obchodních vztahů | D123: 106 | E123: 53539 | F123: 48707 | G123: 47801 | H123: 52174 | I123: 54711 | J123: 65573
B124: 2. | C124: Závazky k ovládaným a řízeným osobám | D124: 107
B125: 3. | C125: Závazky k účetním jednotkám pod podstatným vlivem | D125: 108
B126: 4. | C126: Závazky ke společníkům, členům družstva a k účastníkům sdružení | D126: 109
B127: 5. | C127: Závazky k zaměstnancům | D127: 110 | E127: 4816 | F127: 4721 | G127: 5410 | H127: 5822 | I127: 7859 | J127: 9990
B128: 6. | C128: Závazky ze sociálního zabezpečení a zdravotního pojištění | D128: 111 | E128: 2817 | F128: 2782 | G128: 3063 | H128: 3315 | I128: 4619 | J128: 5921
B129: 7. | C129: Stát - daňové závazky a dotace | D129: 112 | E129: 710 | F129: 1899 | G129: 2541 | H129: 982 | I129: 3210 | J129: 3531
B130: 8. | C130: Krátkodobé přijaté zálohy | D130: 113 | E130: 558 | F130: 8680 | G130: 971 | H130: 1031 | I130: 861 | J130: 2173
B131: 9. | C131: Vydané dluhopisy | D131: 114
B132: 10. | C132: Dohadné účty pasivní | D132: 115 | H132: 1
B133: 11. | C133: Jiné závazky | D133: 116 | E133: 39 | F133: 2734 | G133: 1530 | H133: 4642 | I133: 42 | J133: 102
B134: B. IV. | C134: Bankovní úvěry a výpomoci | D134: 117 | E134: 32998 | F134: 53482 | G134: 55632 | H134: 78721 | I134: 83451 | J134: 95612
B135: B. IV. 1. | C135: Bankovní úvěry dlouhodobé | D135: 118 | E135: 12857 | F135: 36912 | G135: 30931 | H135: 45265 | I135: 42309 | J135: 40875
B136: 2. | C136: Krátkodobé bankovní úvěry | D136: 119 | E136: 20141 | F136: 16570 | G136: 24701 | H136: 33456 | I136: 41142 | J136: 54737
B137: 3. | C137: Krátkodobé finanční výpomoci | D137: 120
B138: C. I. | C138: Časové rozlišení | D138: 121 | E138: 2007 | F138: 746 | G138: 1483 | H138: 1672 | I138: 1822 | J138: 1622
B139: C. I. 1. | C139: Výdaje příštích období | D139: 122 | E139: 1977 | F139: 746 | G139: 1483 | H139: 1672 | I139: 1822 | J139: 1622
B140: 2. | C140: Výnosy příštích období | D140: 123 | E140: 30

Sheet VZZ
B4: VÝKAZ ZISKU A ZTRÁTY | D4: Obchodní firma a sídlo
B5: druhové členění
B6: ke dni 31. prosince | D6: ISAN Radiátory, s.r.o
B7: (v tisicích Kč) | D7: Cejl 817/105
B8: Identifikační číslo: | D8: Brno - Zábrdovice 602 00
B9: 25334727 | D9: Česká republika
B10: Označení | C10: Text | D10: Číslo řádku | E10: 2010 | F10: 2011 | G10: 2012 | H10: 2013 | I10: 2014 | J10: 2015
B13: I. | C13: Tržby za prodej zboží | D13: 01
B14: A. | C14: Náklady vynaložené na prodané zboží | D14: 02
B15: + | C15: Obchodní marže | D15: 03
B16: II. | C16: Výkony | D16: 04 | E16: 337210 | F16: 322482 | G16: 355784 | H16: 347121 | I16: 413233 | J16: 485025
B17: II. 1. | C17: Tržby za prodej vlastních výrobků a služeb | D17: 05 | E17: 333198 | F17: 319777 | G17: 359413 | H17: 347988 | I17: 409052 | J17: 488508
B18: 2. | C18: Změna stavu zásob vlastní činnosti | D18: 06 | E18: 3906 | F18: 2669 | G18: -3641 | H18: -928 | I18: 4019 | J18: -3498
B19: 3. | C19: Aktivace | D19: 07 | E19: 106 | F19: 36 | G19: 12 | H19: 61 | I19: 162 | J19: 15
B20: B. | C20: Výkonová spotřeba | D20: 08 | E20: 231014 | F20: 221917 | G20: 234914 | H20: 221640 | I20: 269881 | J20: 306180
B21: B. 1. | C21: Spotřeba materiálu a energie | D21: 09 | E21: 181032 | F21: 178526 | G21: 193104 | H21: 177850 | I21: 217156 | J21: 244513
B22: B. 2. | C22: Služby | D22: 10 | E22: 49982 | F22: 43391 | G22: 41810 | H22: 43790 | I22: 52725 | J22: 61667
B23: + | C23: Přidaná hodnota | D23: 11 | E23: 106196 | F23: 100565 | G23: 120870 | H23: 125481 | I23: 143352 | J23: 178845
B24: C. | C24: Osobní náklady | D24: 12 | E24: 86457 | F24: 88013 | G24: 89706 | H24: 95451 | I24: 106787 | J24: 133991
B25: C. 1. | C25: Mzdové náklady | D25: 13 | E25: 64161 | F25: 65291 | G25: 66658 | H25: 71087 | I25: 78701 | J25: 98488
B26: C. 2. | C26: Odměny členům orgánů společnosti a družstva | D26: 14 | E26: 120 | F26: 48 | I26: 805 | J26: 1380
B27: C. 3. | C27: Náklady na sociální zabezpečení a zdravotní pojištění | D27: 15 | E27: 21788 | F27: 22138 | G27: 22485 | H27: 23964 | I27: 26828 | J27: 33630
B28: C. 4. | C28: Sociální náklady | D28: 16 | E28: 388 | F28: 536 | G28: 563 | H28: 400 | I28: 453 | J28: 493
B29: D. | C29: Daně a poplatky | D29: 17 | E29: 663 | F29: 208 | G29: 219 | H29: 212 | I29: 246 | J29: 247
B30: E. | C30: Odpisy dlohodobého nehmotného a hmotného majetku | D30: 18 | E30: -1750 | F30: -7331 | G30: -896 | H30: -75 | I30: 1705 | J30: 3658
B31: III. | C31: Tržby z prodeje dlouhodobého majetku a materiálů | D31: 19 | E31: 8584 | F31: 2821 | G31: 2332 | H31: 3097 | I31: 4052 | J31: 4304
B32: III. 1. | C32: Tržby z prodeje dlouhodobého majetku | D32: 20 | E32: 5940 | F32: 20 | G32: 64 | H32: 458 | I32: 345 | J32: 182
B33: III. 2. | C33: Tržby z prodeje materiálu | D33: 21 | E33: 2644 | F33: 2801 | G33: 2268 | H33: 2639 | I33: 3707 | J33: 4122
B34: F. | C34: Zůstatková cena prodaného dlouhodob.majetku a materiálů | D34: 22 | E34: 6027 | F34: 1003 | G34: 1218 | H34: 1235 | I34: 1675 | J34: 2028
B35: F. 1. | C35: Zůstatková cena prodaného dlouhodob.majetku | D35: 23 | E35: 4980 | F35: 21 | I35: 144
B36: F. 2. | C36: Prodaný materiál | D36: 24 | E36: 1047 | F36: 982 | G36: 1218 | H36: 1235 | I36: 1531 | J36: 2028
B37: G. | C37: Změna stavu rezerv a oprav.položek v provoz.oblasti a komplex.nákladů příštích období | D37: 25 | E37: 399 | F37: -8787 | G37: -1135 | H37: 62 | I37: 331 | J37: 85
B38: IV. | C38: Ostatní provozní výnosy | D38: 26 | E38: 1521 | F38: 4132 | G38: 1323 | H38: 1061 | I38: 1570 | J38: 580
B39: H. | C39: Ostatní provozní náklady | D39: 27 | E39: 7864 | F39: 12493 | G39: 4855 | H39: 3840 | I39: 3224 | J39: 6953
B40: V. | C40: Převod provozních výnosů | D40: 28
B41: I. | C41: Převod provozních nákladů | D41: 29
B42: * | C42: Provozní výsledek hospodaření | D42: 30 | E42: 16641 | F42: 21919 | G42: 30558 | H42: 28914 | I42: 35006 | J42: 36767
B43: VI. | C43: Tržby z prodeje cenných papírů a podílů | D43: 31 | F43: 3200
B44: J. | C44: Prodané cenné papíry a podíly | D44: 32 | F44: 1660
B45: VII. | C45: Výnosy z dlouhodobého fin.majetku | D45: 33
B46: VII. 1. | C46: Výnosy z podílů v ovládaných a říz.osobách a v účetních jednotkách pod podstatným vlivem | D46: 34
B47: 2. | C47: Výnosy z ostatních dlouhodobých cenných papírů a podílů | D47: 35
B48: 3. | C48: Výnosy z ostatního dlouhodobého finančního majetku | D48: 36
B49: VIII. | C49: Výnosy z krátkodobého finančního majetku | D49: 37
B50: K. | C50: Náklady z finančního majetku | D50: 38
B51: IX. | C51: Výnosy z přecenění majetkových cenných papírů a derivátů | D51: 39
B52: L. | C52: Náklady z přecenění cenných papírů a derivátů | D52: 40
B53: M. | C53: Změna stavu rezerv a oprav.položek ve finanční oblasti | D53: 41
B54: X. | C54: Výnosové úroky | D54: 42 | E54: 6 | F54: 4 | G54: 9 | H54: 236 | I54: 626 | J54: 550
B55: N. | C55: Nákladové úroky | D55: 43 | E55: 1065 | F55: 1282 | G55: 1478 | H55: 1333 | I55: 1549 | J55: 1488
B56: XI. | C56: Ostatní finanční výnosy | D56: 44 | E56: 3599 | F56: 2809 | G56: 3126 | H56: 5236 | I56: 5729 | J56: 1563
B57: O. | C57: Ostatní finanční náklady | D57: 45 | E57: 4350 | F57: 7522 | G57: 7403 | H57: 10799 | I57: 6713 | J57: 3581
B58: XII. | C58: Převod finančních výnosů | D58: 46
B59: P. | C59: Převod finančních nákladů | D59: 47
B60: * | C60: Finanční výsledek hospodaření | D60: 48 | E60: -1810 | F60: -4451 | G60: -5746 | H60: -6660 | I60: -1907 | J60: -2956
B61: Q. | C61: Daň z příjmu za běžnou činnost | D61: 49 | E61: 2290 | F61: 5091 | G61: 3822 | H61: 4487 | I61: 6460 | J61: 6394
B62: Q. 1. | C62: -splatná | D62: 50 | E62: 2310 | F62: 4040 | G62: 5002 | H62: 4304 | I62: 6351 | J62: 6382
B63: 2. | C63: -odložená | D63: 51 | E63: -20 | F63: 1051 | G63: -1180 | H63: 183 | I63: 109 | J63: 12
B64: ** | C64: Výsledek hospodaření za běžnou činnost | D64: 52 | E64: 12541 | F64: 12377 | G64: 20990 | H64: 17767 | I64: 26639 | J64: 27417
B65: XIII. | C65: Mimořádné výnosy | D65: 53
B66: R. | C66: Mimořádné náklady | D66: 54
B67: S. | C67: Daň z příjmu mimořádné činnosti | D67: 55
B68: S. 1. | C68: -splatná | D68: 56
B69: 2. | C69: -odložená | D69: 57
B70: * | C70: Mimořádný výsledek hospodaření | D70: 58
B71: T. | C71: Převod podílu na hospodářském výsledku společníkům | D71: 59
B72: *** | C72: Výsledek hospodaření za účetní období | D72: 60 | E72: 12541 | F72: 12377 | G72: 20990 | H72: 17767 | I72: 26639 | J72: 27417
B73: *** | C73: Výsledek hospodaření za účetní období před zdaněním | D73: 61 | E73: 14831 | F73: 17468 | G73: 24812 | H73: 22254 | I73: 33099 | J73: 33811

Sheet Horizontální analýza
B4: Položky rozvahy | D4: 2011 | F4: 2012 | H4: 2013 | J4: 2014 | L4: 2015
D5: abs. změna | E5: % změna | F5: abs. změna | G5: % změna | H5: abs. změna | I5: % změna | J5: abs. změna | K5: % změna | L5: abs. změna | M5: % změna
B6: AKTIVA | C6: Aktiva celkem | D6: =Rozvaha!F13-Rozvaha!E13 -> 6997 | E6: =D6/Rozvaha!E13 -> 0.04456574355 | F6: =Rozvaha!G13-Rozvaha!F13 -> 16188 | G6: =F6/Rozvaha!F13 -> 0.0987067152 | H6: =Rozvaha!H13-Rozvaha!G13 -> 32879 | I6: =H6/Rozvaha!G13 -> 0.1824695181 | J6: =Rozvaha!I13-Rozvaha!H13 -> 32962 | K6: =J6/Rozvaha!H13 -> 0.1547017853 | L6: =Rozvaha!J13-Rozvaha!I13 -> 54379 | M6: =L6/Rozvaha!I13 -> 0.2210258912
C7: Dlouhodobý majetek | D7: =Rozvaha!F15-Rozvaha!E15 -> 11632 | E7: =D7/Rozvaha!E15 -> 0.1675549538 | F7: =Rozvaha!G15-Rozvaha!F15 -> 13131 | G7: =F7/Rozvaha!F15 -> 0.162003109 | H7: =Rozvaha!H15-Rozvaha!G15 -> 16660 | I7: =H7/Rozvaha!G15 -> 0.176885916 | J7: =Rozvaha!I15-Rozvaha!H15 -> 7173 | K7: =J7/Rozvaha!H15 -> 0.0647119852 | L7: =Rozvaha!J15-Rozvaha!I15 -> 24870 | M7: =L7/Rozvaha!I15 -> 0.2107305665
C8: Dlouhodobý nehmotný majetek | D8: =Rozvaha!F16-Rozvaha!E16 -> 6426 | E8: =D8/Rozvaha!E16 -> 4.371428571 | F8: =Rozvaha!G16-Rozvaha!F16 -> 425 | G8: =F8/Rozvaha!F16 -> 0.05382472138 | H8: =Rozvaha!H16-Rozvaha!G16 -> -1235 | I8: =H8/Rozvaha!G16 -> -0.1484196611 | J8: =Rozvaha!I16-Rozvaha!H16 -> -1079 | K8: =J8/Rozvaha!H16 -> -0.1522720858 | L8: =Rozvaha!J16-Rozvaha!I16 -> -815 | M8: =L8/Rozvaha!I16 -> -0.1356750458
C9: Dlouhodobý hmotný majetek | D9: =Rozvaha!F25-Rozvaha!E25 -> 13166 | E9: =D9/Rozvaha!E25 -> 0.219462595 | F9: =Rozvaha!G25-Rozvaha!F25 -> 12706 | G9: =F9/Rozvaha!F25 -> 0.1736788868 | H9: =Rozvaha!H25-Rozvaha!G25 -> 17895 | I9: =H9/Rozvaha!G25 -> 0.2084109755 | J9: =Rozvaha!I25-Rozvaha!H25 -> 8252 | K9: =J9/Rozvaha!H25 -> 0.07953045037 | L9: =Rozvaha!J25-Rozvaha!I25 -> 25685 | M9: =L9/Rozvaha!I25 -> 0.2293078358
C10: Oběžná aktiva | D10: =Rozvaha!F43-Rozvaha!E43 -> -4363 | E10: =D10/Rozvaha!E43 -> -0.05163558038 | F10: =Rozvaha!G43-Rozvaha!F43 -> 3707 | G10: =F10/Rozvaha!F43 -> 0.04626059177 | H10: =Rozvaha!H43-Rozvaha!G43 -> 17188 | I10: =H10/Rozvaha!G43 -> 0.205009542 | J10: =Rozvaha!I43-Rozvaha!H43 -> 26116 | K10: =J10/Rozvaha!H43 -> 0.2585025933 | L10: =Rozvaha!J43-Rozvaha!I43 -> 30149 | M10: =L10/Rozvaha!I43 -> 0.2371248348
C11: Zásoby | D11: =Rozvaha!F44-Rozvaha!E44 -> 670 | E11: =D11/Rozvaha!E44 -> 0.01570042649 | F11: =Rozvaha!G44-Rozvaha!F44 -> -3308 | G11: =F11/Rozvaha!F44 -> -0.07631967516 | H11: =Rozvaha!H44-Rozvaha!G44 -> 952 | I11: =H11/Rozvaha!G44 -> 0.02377859926 | J11: =Rozvaha!I44-Rozvaha!H44 -> 8617 | K11: =J11/Rozvaha!H44 -> 0.2102322631 | L11: =Rozvaha!J44-Rozvaha!I44 -> 3979 | M11: =L11/Rozvaha!I44 -> 0.08021368814
C12: Krátkodobé pohledávky | D12: =Rozvaha!F60-Rozvaha!E60 -> -12472 | E12: =D12/Rozvaha!E60 -> -0.3612664021 | F12: =Rozvaha!G60-Rozvaha!F60 -> 8373 | G12: =F12/Rozvaha!F60 -> 0.3797106707 | H12: =Rozvaha!H60-Rozvaha!G60 -> 12167 | I12: =H12/Rozvaha!G60 -> 0.3999145412 | J12: =Rozvaha!I60-Rozvaha!H60 -> 13988 | K12: =J12/Rozvaha!H60 -> 0.3284261933 | L12: =Rozvaha!J60-Rozvaha!I60 -> -19980 | M12: =L12/Rozvaha!I60 -> -0.3531345552
C13: Krátkodobý finanční majetek | D13: =Rozvaha!F70-Rozvaha!E70 -> 7439 | E13: =D13/Rozvaha!E70 -> 1.01918071 | F13: =Rozvaha!G70-Rozvaha!F70 -> -1358 | G13: =F13/Rozvaha!F70 -> -0.09214276021 | H13: =Rozvaha!H70-Rozvaha!G70 -> 4069 | I13: =H13/Rozvaha!G70 -> 0.3041106129 | J13: =Rozvaha!I70-Rozvaha!H70 -> 3511 | K13: =J13/Rozvaha!H70 -> 0.2012149693 | L13: =Rozvaha!J70-Rozvaha!I70 -> 21555 | M13: =L13/Rozvaha!I70 -> 1.028387405
C14: Časové rozlišení | D14: =Rozvaha!F75-Rozvaha!E75 -> -272 | E14: =D14/Rozvaha!E75 -> -0.08813998704 | F14: =Rozvaha!G75-Rozvaha!F75 -> -650 | G14: =F14/Rozvaha!F75 -> -0.2309879176 | H14: =Rozvaha!H75-Rozvaha!G75 -> -969 | I14: =H14/Rozvaha!G75 -> -0.4477818854 | J14: =Rozvaha!I75-Rozvaha!H75 -> -327 | K14: =J14/Rozvaha!H75 -> -0.2736401674 | L14: =Rozvaha!J75-Rozvaha!I75 -> -640 | M14: =L14/Rozvaha!I75 -> -0.7373271889
B15: PASIVA | C15: Pasiva celkem | D15: =Rozvaha!F84-Rozvaha!E84 -> 6997 | E15: =D15/Rozvaha!E84 -> 0.04456574355 | F15: =Rozvaha!G84-Rozvaha!F84 -> 16188 | G15: =F15/Rozvaha!F84 -> 0.0987067152 | H15: =Rozvaha!H84-Rozvaha!G84 -> 32879 | I15: =H15/Rozvaha!G84 -> 0.1824695181 | J15: =Rozvaha!I84-Rozvaha!H84 -> 32962 | K15: =J15/Rozvaha!H84 -> 0.1547017853 | L15: =Rozvaha!J84-Rozvaha!I84 -> 54379 | M15: =L15/Rozvaha!I84 -> 0.2210258912
C16: Vlastní kapitál | D16: =Rozvaha!F85-Rozvaha!E85 -> -20321 | E16: =D16/Rozvaha!E85 -> -0.3455070985 | F16: =Rozvaha!G85-Rozvaha!F85 -> 22688 | G16: =F16/Rozvaha!F85 -> 0.5893905544 | H16: =Rozvaha!H85-Rozvaha!G85 -> 2767 | I16: =H16/Rozvaha!G85 -> 0.04522571998 | J16: =Rozvaha!I85-Rozvaha!H85 -> 24638 | K16: =J16/Rozvaha!H85 -> 0.3852757666 | L16: =Rozvaha!J85-Rozvaha!I85 -> 17417 | M16: =L16/Rozvaha!I85 -> 0.1966089833
C17: VH minulých let | D17: =Rozvaha!F100-Rozvaha!E100 -> -17459 | E17: =D17/Rozvaha!E100 -> -0.5610218509 | F17: =Rozvaha!G100-Rozvaha!F100 -> 11377 | G17: =F17/Rozvaha!F100 -> 0.8328087256 | H17: =Rozvaha!H100-Rozvaha!G100 -> 5990 | I17: =H17/Rozvaha!G100 -> 0.2392363607 | J17: =Rozvaha!I100-Rozvaha!H100 -> 15766 | K17: =J17/Rozvaha!H100 -> 0.5081216965 | L17: =Rozvaha!J100-Rozvaha!I100 -> 16639 | M17: =L17/Rozvaha!I100 -> 0.3555797752
C18: VH běžného účetního období | D18: =Rozvaha!F104-Rozvaha!E104 -> -164 | E18: =D18/Rozvaha!E104 -> -0.01307710709 | F18: =Rozvaha!G104-Rozvaha!F104 -> 8613 | G18: =F18/Rozvaha!F104 -> 0.6958875333 | H18: =Rozvaha!H104-Rozvaha!G104 -> -3223 | I18: =H18/Rozvaha!G104 -> -0.1535493092 | J18: =Rozvaha!I104-Rozvaha!H104 -> 8872 | K18: =J18/Rozvaha!H104 -> 0.4993527326 | L18: =Rozvaha!J104-Rozvaha!I104 -> 778 | M18: =L18/Rozvaha!I104 -> 0.0292053005
C19: Cizí zdroje | D19: =Rozvaha!F105-Rozvaha!E105 -> 28579 | E19: =D19/Rozvaha!E105 -> 0.297134599 | F19: =Rozvaha!G105-Rozvaha!F105 -> -7237 | G19: =F19/Rozvaha!F105 -> -0.05800690921 | H19: =Rozvaha!H105-Rozvaha!G105 -> 29923 | I19: =H19/Rozvaha!G105 -> 0.254611824 | J19: =Rozvaha!I105-Rozvaha!H105 -> 8174 | K19: =J19/Rozvaha!H105 -> 0.05543686884 | L19: =Rozvaha!J105-Rozvaha!I105 -> 37162 | M19: =L19/Rozvaha!I105 -> 0.2387981057
C20: Krátkodobé závazky | D20: =Rozvaha!F122-Rozvaha!E122 -> 7044 | E20: =D20/Rozvaha!E122 -> 0.1127418813 | F20: =Rozvaha!G122-Rozvaha!F122 -> -8207 | G20: =F20/Rozvaha!F122 -> -0.1180472649 | H20: =Rozvaha!H122-Rozvaha!G122 -> 6651 | I20: =H20/Rozvaha!G122 -> 0.1084708722 | J20: =Rozvaha!I122-Rozvaha!H122 -> 3335 | K20: =J20/Rozvaha!H122 -> 0.04906793002 | L20: =Rozvaha!J122-Rozvaha!I122 -> 15988 | M20: =L20/Rozvaha!I122 -> 0.2242293344

Sheet Vertikální analýza
B4: Položky rozvahy | D4: 2011 | E4: 2012 | F4: 2013 | G4: 2014 | H4: 2015
D5: % podíl | E5: % podíl | F5: % podíl | G5: % podíl | H5: % podíl
B6: AKTIVA | C6: Aktiva celkem | D6: 1 | E6: 1 | F6: 1 | G6: 1 | H6: 1
C7: Dlouhodobý majetek | D7: =Rozvaha!F15/Rozvaha!F13 -> 0.4942286937 | E7: =Rozvaha!G15/Rozvaha!G13 -> 0.5227011638 | F7: =Rozvaha!H15/Rozvaha!H13 -> 0.5202329773 | G7: =Rozvaha!I15/Rozvaha!I13 -> 0.4796894688 | H7: =Rozvaha!J15/Rozvaha!J13 -> 0.4756448708
C8: Dlouhodobý nehmotný majetek | D8: =Rozvaha!F16/Rozvaha!F13 -> 0.04814604789 | E8: =Rozvaha!G16/Rozvaha!G13 -> 0.04617928952 | F8: =Rozvaha!H16/Rozvaha!H13 -> 0.03325698838 | G8: =Rozvaha!I16/Rozvaha!I13 -> 0.02441572166 | H8: =Rozvaha!J16/Rozvaha!J13 -> 0.01728310403
C9: Dlouhodobý hmotný majetek | D9: =Rozvaha!F25/Rozvaha!F13 -> 0.4460826458 | E9: =Rozvaha!G25/Rozvaha!G13 -> 0.4765218743 | F9: =Rozvaha!H25/Rozvaha!H13 -> 0.4869759889 | G9: =Rozvaha!I25/Rozvaha!I13 -> 0.4552737471 | H9: =Rozvaha!J25/Rozvaha!J13 -> 0.4583617668
C10: Oběžná aktiva | D10: =Rozvaha!F43/Rozvaha!F13 -> 0.4886128743 | E10: =Rozvaha!G43/Rozvaha!G13 -> 0.4652892241 | F10: =Rozvaha!H43/Rozvaha!H13 -> 0.4741584846 | G10: =Rozvaha!I43/Rozvaha!I13 -> 0.5167825062 | H10: =Rozvaha!J43/Rozvaha!J13 -> 0.5235961639
C11: Zásoby | D11: =Rozvaha!F44/Rozvaha!F13 -> 0.2642910714 | E11: =Rozvaha!G44/Rozvaha!G13 -> 0.2221889239 | F11: =Rozvaha!H44/Rozvaha!H13 -> 0.1923705108 | G11: =Rozvaha!I44/Rozvaha!I13 -> 0.2016217534 | H11: =Rozvaha!J44/Rozvaha!J13 -> 0.1783701554
C12: Dlouhodobé pohledávky | D12: =Rozvaha!F51/Rozvaha!F13 -> 0 | E12: =Rozvaha!G51/Rozvaha!G13 -> 0 | F12: =Rozvaha!H51/Rozvaha!H13 -> 0 | G12: =Rozvaha!I51/Rozvaha!I13 -> 0 | H12: =Rozvaha!J51/Rozvaha!J13 -> 0.0818717149
C13: Krátkodobé pohledávky | D13: =Rozvaha!F60/Rozvaha!F13 -> 0.1344564972 | E13: =Rozvaha!G60/Rozvaha!G13 -> 0.168844935 | F13: =Rozvaha!H60/Rozvaha!H13 -> 0.1998939306 | G13: =Rozvaha!I60/Rozvaha!I13 -> 0.2299678901 | H13: =Rozvaha!J60/Rozvaha!J13 -> 0.121830571
C14: Krátkodobý finanční majetek | D14: =Rozvaha!F70/Rozvaha!F13 -> 0.0898653057 | E14: =Rozvaha!G70/Rozvaha!G13 -> 0.0742553652 | F14: =Rozvaha!H70/Rozvaha!H13 -> 0.08189404322 | G14: =Rozvaha!I70/Rozvaha!I13 -> 0.08519286266 | H14: =Rozvaha!J70/Rozvaha!J13 -> 0.1415237227
C15: Časové rozlišení | D15: =Rozvaha!F75/Rozvaha!F13 -> 0.01715843196 | E15: =Rozvaha!G75/Rozvaha!G13 -> 0.01200961213 | F15: =Rozvaha!H75/Rozvaha!H13 -> 0.005608538119 | G15: =Rozvaha!I75/Rozvaha!I13 -> 0.003528025038 | H15: =Rozvaha!J75/Rozvaha!J13 -> 0.0007589652773
B16: PASIVA | C16: Pasiva celkem | D16: 1 | E16: 1 | F16: 1 | G16: 1 | H16: 1
C17: Vlastní kapitál | D17: =Rozvaha!F85/Rozvaha!F84 -> 0.234718081 | E17: =Rozvaha!G85/Rozvaha!G84 -> 0.3395434793 | F17: =Rozvaha!H85/Rozvaha!H84 -> 0.3001342294 | G17: =Rozvaha!I85/Rozvaha!I84 -> 0.3600658456 | H17: =Rozvaha!J85/Rozvaha!J84 -> 0.3528655932
C18: VH minulých let | D18: =Rozvaha!F100/Rozvaha!F84 -> 0.08329827257 | E18: =Rozvaha!G100/Rozvaha!G84 -> 0.1389540982 | F18: =Rozvaha!H100/Rozvaha!H84 -> 0.1456248709 | G18: =Rozvaha!I100/Rozvaha!I84 -> 0.1901963175 | H18: =Rozvaha!J100/Rozvaha!J84 -> 0.2111554581
C19: VH běžného účetního období | D19: =Rozvaha!F104/Rozvaha!F84 -> 0.07546905202 | E19: =Rozvaha!G104/Rozvaha!G84 -> 0.1164887979 | F19: =Rozvaha!H104/Rozvaha!H84 -> 0.08338652449 | G19: =Rozvaha!I104/Rozvaha!I84 -> 0.1082754136 | H19: =Rozvaha!J104/Rozvaha!J84 -> 0.0912655746
C20: Cizí zdroje | D20: =Rozvaha!F105/Rozvaha!F84 -> 0.7607331663 | E20: =Rozvaha!G105/Rozvaha!G84 -> 0.6522262735 | F20: =Rozvaha!H105/Rozvaha!H84 -> 0.6920185105 | G20: =Rozvaha!I105/Rozvaha!I84 -> 0.6325285534 | H20: =Rozvaha!J105/Rozvaha!J84 -> 0.6417351011
C21: Rezervy | D21: =Rozvaha!F106/Rozvaha!F84 -> 0 | E21: =Rozvaha!G106/Rozvaha!G84 -> 0 | F21: =Rozvaha!H106/Rozvaha!H84 -> 0 | G21: =Rozvaha!I106/Rozvaha!I84 -> 0 | H21: =Rozvaha!J106/Rozvaha!J84 -> 0
C22: Dlouhodobé závazky | D22: =Rozvaha!F111/Rozvaha!F84 -> 0.01070725179 | E22: =Rozvaha!G111/Rozvaha!G84 -> 0.003196643524 | F22: =Rozvaha!H111/Rozvaha!H84 -> 0.00356224304 | G22: =Rozvaha!I111/Rozvaha!I84 -> 0.003528025038 | H22: =Rozvaha!J111/Rozvaha!J84 -> 0.03289182415
C23: Krátkodobé závazky | D23: =Rozvaha!F122/Rozvaha!F84 -> 0.4239181468 | E23: =Rozvaha!G122/Rozvaha!G84 -> 0.3402871429 | F23: =Rozvaha!H122/Rozvaha!H84 -> 0.3189920589 | G23: =Rozvaha!I122/Rozvaha!I84 -> 0.2898101857 | H23: =Rozvaha!J122/Rozvaha!J84 -> 0.2905705222

Sheet Rozdílové ukazatele
B4: ROZDÍLOVÉ UKAZATELE | C4: Č I S T Ý P R A C O V N Í K A P I T Á L
D6: =Rozvaha!F10 -> 2011 | E6: =Rozvaha!G10 -> 2012 | F6: =Rozvaha!H10 -> 2013 | G6: =Rozvaha!I10 -> 2014 | H6: =Rozvaha!J10 -> 2015
C7: Oběžná aktiva | D7: =Rozvaha!F43 -> 80133 | E7: =Rozvaha!G43 -> 83840 | F7: =Rozvaha!H43 -> 101028 | G7: =Rozvaha!I43 -> 127144 | H7: =Rozvaha!J43 -> 157293
C8: Krátkodobé závazky | D8: =Rozvaha!F122 -> 69523 | E8: =Rozvaha!G122 -> 61316 | F8: =Rozvaha!H122 -> 67967 | G8: =Rozvaha!I122 -> 71302 | H8: =Rozvaha!J122 -> 87290
C9: ČPK | D9: =D7-D8 -> 10610 | E9: =E7-E8 -> 22524 | F9: =F7-F8 -> 33061 | G9: =G7-G8 -> 55842 | H9: =H7-H8 -> 70003
C10: Č I S T É P O H O T O V O S T N Í P R O S T Ř E D K Y
D12: =Rozvaha!F10 -> 2011 | E12: =Rozvaha!G10 -> 2012 | F12: =Rozvaha!H10 -> 2013 | G12: =Rozvaha!I10 -> 2014 | H12: =Rozvaha!J10 -> 2015
C13: Pohotové fin. prostředky | D13: =Rozvaha!F70 -> 14738 | E13: =Rozvaha!G70 -> 13380 | F13: =Rozvaha!H70 -> 17449 | G13: =Rozvaha!I70 -> 20960 | H13: =Rozvaha!J70 -> 42515
C14: Okamžité splatné závazky | D14: =Rozvaha!F122 -> 69523 | E14: =Rozvaha!G122 -> 61316 | F14: =Rozvaha!H122 -> 67967 | G14: =Rozvaha!I122 -> 71302 | H14: =Rozvaha!J122 -> 87290
C15: ČPP | D15: =D13-D14 -> -54785 | E15: =E13-E14 -> -47936 | F15: =F13-F14 -> -50518 | G15: =G13-G14 -> -50342 | H15: =H13-H14 -> -44775
C16: Č I S T Ý P E N Ě Ž N Ě - P O H L E D Á V K O V Ý F I N. FOND
D18: =Rozvaha!F10 -> 2011 | E18: =Rozvaha!G10 -> 2012 | F18: =Rozvaha!H10 -> 2013 | G18: =Rozvaha!I10 -> 2014 | H18: =Rozvaha!J10 -> 2015
C19: Oběžná aktiva | D19: =Rozvaha!F43 -> 80133 | E19: =Rozvaha!G43 -> 83840 | F19: =Rozvaha!H43 -> 101028 | G19: =Rozvaha!I43 -> 127144 | H19: =Rozvaha!J43 -> 157293
C20: Zásoby | D20: =Rozvaha!F44 -> 43344 | E20: =Rozvaha!G44 -> 40036 | F20: =Rozvaha!H44 -> 40988 | G20: =Rozvaha!I44 -> 49605 | H20: =Rozvaha!J44 -> 53584
C21: Nelikvidní pohledávky | D21: =Rozvaha!F51 -> 0 | E21: =Rozvaha!G51 -> 0 | F21: =Rozvaha!H51 -> 0 | G21: =Rozvaha!I51 -> 0 | H21: =Rozvaha!J51 -> 24595
C22: Kr. závazky | D22: =Rozvaha!F122 -> 69523 | E22: =Rozvaha!G122 -> 61316 | F22: =Rozvaha!H122 -> 67967 | G22: =Rozvaha!I122 -> 71302 | H22: =Rozvaha!J122 -> 87290
C23: ČPPF | D23: =D19-D20-D21-D22 -> -32734 | E23: =E19-E20-E21-E22 -> -17512 | F23: =F19-F20-F21-F22 -> -7927 | G23: =G19-G20-G21-G22 -> 6237 | H23: =H19-H20-H21-H22 -> -8176

Sheet Poměrové ukazatele
B4: L I K V I D I T A | C4: O K A M Ž I T Á L I K V I D I T A | K4: ZADLUŽENOST | L4: C E L K O V Á Z A D L U Ž E N O S T
D6: =Rozvaha!F10 -> 2011 | E6: =Rozvaha!G10 -> 2012 | F6: =Rozvaha!H10 -> 2013 | G6: =Rozvaha!I10 -> 2014 | H6: =Rozvaha!J10 -> 2015 | M6: =Rozvaha!F10 -> 2011 | N6: =Rozvaha!G10 -> 2012 | O6: =Rozvaha!H10 -> 2013 | P6: =Rozvaha!I10 -> 2014 | Q6: =Rozvaha!J10 -> 2015
C7: Krátkodobý fin. majetek | D7: =Rozvaha!F70 -> 14738 | E7: =Rozvaha!G70 -> 13380 | F7: =Rozvaha!H70 -> 17449 | G7: =Rozvaha!I70 -> 20960 | H7: =Rozvaha!J70 -> 42515 | L7: Cizí zdroje | M7: =Rozvaha!F105 -> 124761 | N7: =Rozvaha!G105 -> 117524 | O7: =Rozvaha!H105 -> 147447 | P7: =Rozvaha!I105 -> 155621 | Q7: =Rozvaha!J105 -> 192783
C8: Krátkodobé závazky | D8: =Rozvaha!F122+Rozvaha!F137 -> 69523 | E8: =Rozvaha!G122+Rozvaha!G137 -> 61316 | F8: =Rozvaha!H122+Rozvaha!H137 -> 67967 | G8: =Rozvaha!I122+Rozvaha!I137 -> 71302 | H8: =Rozvaha!J122+Rozvaha!J137 -> 87290 | L8: Celková aktiva | M8: =Rozvaha!F13 -> 164001 | N8: =Rozvaha!G13 -> 180189 | O8: =Rozvaha!H13 -> 213068 | P8: =Rozvaha!I13 -> 246030 | Q8: =Rozvaha!J13 -> 300409
C9: Okamžitá likvidita | D9: =D7/D8 -> 0.2119873999 | E9: =E7/E8 -> 0.218213843 | F9: =F7/F8 -> 0.2567275295 | G9: =G7/G8 -> 0.2939608987 | H9: =H7/H8 -> 0.4870546454 | L9: Celková zadluženost | M9: =M7/M8 -> 0.7607331663 | N9: =N7/N8 -> 0.6522262735 | O9: =O7/O8 -> 0.6920185105 | P9: =P7/P8 -> 0.6325285534 | Q9: =Q7/Q8 -> 0.6417351011
C10: P O H O T O V Á L I K V I D I T A | L10: K O E F I C I E N T S A M O F I N A N C O V Á N Í
D12: =Rozvaha!F10 -> 2011 | E12: =Rozvaha!G10 -> 2012 | F12: =Rozvaha!H10 -> 2013 | G12: =Rozvaha!I10 -> 2014 | H12: =Rozvaha!J10 -> 2015 | M12: =Rozvaha!F10 -> 2011 | N12: =Rozvaha!G10 -> 2012 | O12: =Rozvaha!H10 -> 2013 | P12: =Rozvaha!I10 -> 2014 | Q12: =Rozvaha!J10 -> 2015
C13: Oběžná aktiva | D13: =Rozvaha!F43 -> 80133 | E13: =Rozvaha!G43 -> 83840 | F13: =Rozvaha!H43 -> 101028 | G13: =Rozvaha!I43 -> 127144 | H13: =Rozvaha!J43 -> 157293 | L13: Vlastní kapitál | M13: =Rozvaha!F85 -> 38494 | N13: =Rozvaha!G85 -> 61182 | O13: =Rozvaha!H85 -> 63949 | P13: =Rozvaha!I85 -> 88587 | Q13: =Rozvaha!J85 -> 106004
C14: Zásoby | D14: =Rozvaha!F44 -> 43344 | E14: =Rozvaha!G44 -> 40036 | F14: =Rozvaha!H44 -> 40988 | G14: =Rozvaha!I44 -> 49605 | H14: =Rozvaha!J44 -> 53584 | L14: Celková aktiva | M14: =Rozvaha!F13 -> 164001 | N14: =Rozvaha!G13 -> 180189 | O14: =Rozvaha!H13 -> 213068 | P14: =Rozvaha!I13 -> 246030 | Q14: =Rozvaha!J13 -> 300409
C15: Krátkodobé závazky | D15: =Rozvaha!F122+Rozvaha!F137 -> 69523 | E15: =Rozvaha!G122+Rozvaha!G137 -> 61316 | F15: =Rozvaha!H122+Rozvaha!H137 -> 67967 | G15: =Rozvaha!I122+Rozvaha!I137 -> 71302 | H15: =Rozvaha!J122+Rozvaha!J137 -> 87290 | L15: Koeficient samofinancování | M15: =M13/M14 -> 0.234718081 | N15: =N13/N14 -> 0.3395434793 | O15: =O13/O14 -> 0.3001342294 | P15: =P13/P14 -> 0.3600658456 | Q15: =Q13/Q14 -> 0.3528655932
C16: Pohotová likvidita | D16: =(D13-D14)/D15 -> 0.5291630108 | E16: =(E13-E14)/E15 -> 0.7143975471 | F16: =(F13-F14)/F15 -> 0.8833698707 | G16: =(G13-G14)/G15 -> 1.087473002 | H16: =(H13-H14)/H15 -> 1.188097147
C17: B Ě Ž N Á L I K V I D I T A
K18: A K T I V I T A | L18: O B R A T C E L K O V Ý CH A K T I V
D19: =Rozvaha!F10 -> 2011 | E19: =Rozvaha!G10 -> 2012 | F19: =Rozvaha!H10 -> 2013 | G19: =Rozvaha!I10 -> 2014 | H19: =Rozvaha!J10 -> 2015
C20: Oběžná aktiva | D20: =Rozvaha!F43 -> 80133 | E20: =Rozvaha!G43 -> 83840 | F20: =Rozvaha!H43 -> 101028 | G20: =Rozvaha!I43 -> 127144 | H20: =Rozvaha!J43 -> 157293 | M20: =Rozvaha!F10 -> 2011 | N20: =Rozvaha!G10 -> 2012 | O20: =Rozvaha!H10 -> 2013 | P20: =Rozvaha!I10 -> 2014 | Q20: =Rozvaha!J10 -> 2015
C21: Krátkodobé závazky | D21: =Rozvaha!F122+Rozvaha!F137 -> 69523 | E21: =Rozvaha!G122+Rozvaha!G137 -> 61316 | F21: =Rozvaha!H122+Rozvaha!H137 -> 67967 | G21: =Rozvaha!I122+Rozvaha!I137 -> 71302 | H21: =Rozvaha!J122+Rozvaha!J137 -> 87290 | L21: Roční tržby | M21: =VZZ!F13+VZZ!F17 -> 319777 | N21: =VZZ!G13+VZZ!G17 -> 359413 | O21: =VZZ!H13+VZZ!H17 -> 347988 | P21: =VZZ!I13+VZZ!I17 -> 409052 | Q21: =VZZ!J13+VZZ!J17 -> 488508
C22: Běžná likvidita | D22: =D20/D21 -> 1.152611366 | E22: =E20/E21 -> 1.367342945 | F22: =F20/F21 -> 1.486427237 | G22: =G20/G21 -> 1.783175787 | H22: =H20/H21 -> 1.801958987 | L22: Celková aktiva | M22: =Rozvaha!F13 -> 164001 | N22: =Rozvaha!G13 -> 180189 | O22: =Rozvaha!H13 -> 213068 | P22: =Rozvaha!I13 -> 246030 | Q22: =Rozvaha!J13 -> 300409
L23: Obrat celkových aktiv | M23: =M21/M22 -> 1.949847867 | N23: =N21/N22 -> 1.994644512 | O23: =O21/O22 -> 1.633225074 | P23: =P21/P22 -> 1.662610251 | Q23: =Q21/Q22 -> 1.626143025
L24: O B R A T S T Á L Ý CH A K T I V
B25: R E N T A B I L I T A | C25: R E N T A B I L I T A V L O Ž E N É H O K A P I T Á L U
M26: =Rozvaha!F10 -> 2011 | N26: =Rozvaha!G10 -> 2012 | O26: =Rozvaha!H10 -> 2013 | P26: =Rozvaha!I10 -> 2014 | Q26: =Rozvaha!J10 -> 2015
D27: =Rozvaha!F10 -> 2011 | E27: =Rozvaha!G10 -> 2012 | F27: =Rozvaha!H10 -> 2013 | G27: =Rozvaha!I10 -> 2014 | H27: =Rozvaha!J10 -> 2015 | L27: Roční tržby | M27: =VZZ!F13+VZZ!F17 -> 319777 | N27: =VZZ!G13+VZZ!G17 -> 359413 | O27: =VZZ!H13+VZZ!H17 -> 347988 | P27: =VZZ!I13+VZZ!I17 -> 409052 | Q27: =VZZ!J13+VZZ!J17 -> 488508
C28: Zisk před zdaněním | D28: =VZZ!F73 -> 17468 | E28: =VZZ!G73 -> 24812 | F28: =VZZ!H73 -> 22254 | G28: =VZZ!I73 -> 33099 | H28: =VZZ!J73 -> 33811 | L28: Stálá aktiva | M28: =Rozvaha!F15 -> 81054 | N28: =Rozvaha!G15 -> 94185 | O28: =Rozvaha!H15 -> 110845 | P28: =Rozvaha!I15 -> 118018 | Q28: =Rozvaha!J15 -> 142888
C29: Nákladové úroky | D29: =VZZ!F55 -> 1282 | E29: =VZZ!G55 -> 1478 | F29: =VZZ!H55 -> 1333 | G29: =VZZ!I55 -> 1549 | H29: =VZZ!J55 -> 1488 | L29: Obrat stálých aktiv | M29: =M27/M28 -> 3.945234042 | N29: =N27/N28 -> 3.816032277 | O29: =O27/O28 -> 3.139410889 | P29: =P27/P28 -> 3.466013659 | Q29: =Q27/Q28 -> 3.418817535
C30: Celkový kapitál | D30: =Rozvaha!F84 -> 164001 | E30: =Rozvaha!G84 -> 180189 | F30: =Rozvaha!H84 -> 213068 | G30: =Rozvaha!I84 -> 246030 | H30: =Rozvaha!J84 -> 300409 | L30: O B R A T Z Á S O B
C31: ROI | D31: =(D28+D29)/D30 -> 0.1143285712 | E31: =(E28+E29)/E30 -> 0.1459023581 | F31: =(F28+F29)/F30 -> 0.1107017478 | G31: =(G28+G29)/G30 -> 0.1408283543 | H31: =(H28+H29)/H30 -> 0.1175031374
C32: R E N T A B I L I T A C E L K O V É H O V L O Ž E N É H O K A P I T Á L U | M32: =Rozvaha!F10 -> 2011 | N32: =Rozvaha!G10 -> 2012 | O32: =Rozvaha!H10 -> 2013 | P32: =Rozvaha!I10 -> 2014 | Q32: =Rozvaha!J10 -> 2015
L33: Roční tržby | M33: =VZZ!F13+VZZ!F17 -> 319777 | N33: =VZZ!G13+VZZ!G17 -> 359413 | O33: =VZZ!H13+VZZ!H17 -> 347988 | P33: =VZZ!I13+VZZ!I17 -> 409052 | Q33: =VZZ!J13+VZZ!J17 -> 488508
D34: =Rozvaha!F10 -> 2011 | E34: =Rozvaha!G10 -> 2012 | F34: =Rozvaha!H10 -> 2013 | G34: =Rozvaha!I10 -> 2014 | H34: =Rozvaha!J10 -> 2015 | L34: Zásoby | M34: =Rozvaha!F44 -> 43344 | N34: =Rozvaha!G44 -> 40036 | O34: =Rozvaha!H44 -> 40988 | P34: =Rozvaha!I44 -> 49605 | Q34: =Rozvaha!J44 -> 53584
C35: EBIT | D35: =VZZ!F72+VZZ!F61+VZZ!F67+VZZ!F55 -> 18750 | E35: =VZZ!G72+VZZ!G61+VZZ!G67+VZZ!G55 -> 26290 | F35: =VZZ!H72+VZZ!H61+VZZ!H67+VZZ!H55 -> 23587 | G35: =VZZ!I72+VZZ!I61+VZZ!I67+VZZ!I55 -> 34648 | H35: =VZZ!J72+VZZ!J61+VZZ!J67+VZZ!J55 -> 35299 | L35: Obrat zásob | M35: =M33/M34 -> 7.377653193 | N35: =N33/N34 -> 8.977245479 | O35: =O33/O34 -> 8.489997072 | P35: =P33/P34 -> 8.24618486 | Q35: =Q33/Q34 -> 9.11667662
C36: Celková aktiva | D36: =Rozvaha!F13 -> 164001 | E36: =Rozvaha!G13 -> 180189 | F36: =Rozvaha!H13 -> 213068 | G36: =Rozvaha!I13 -> 246030 | H36: =Rozvaha!J13 -> 300409 | L36: D O B A O B R A T U Z Á S O B
C37: ROA | D37: =D35/D36 -> 0.1143285712 | E37: =E35/E36 -> 0.1459023581 | F37: =F35/F36 -> 0.1107017478 | G37: =G35/G36 -> 0.1408283543 | H37: =H35/H36 -> 0.1175031374
C38: R E N T A B I L I T A V L A S T N Í H O K A P I T Á L U | M38: =Rozvaha!F10 -> 2011 | N38: =Rozvaha!G10 -> 2012 | O38: =Rozvaha!H10 -> 2013 | P38: =Rozvaha!I10 -> 2014 | Q38: =Rozvaha!J10 -> 2015
L39: Zásoby | M39: =Rozvaha!F44 -> 43344 | N39: =Rozvaha!G44 -> 40036 | O39: =Rozvaha!H44 -> 40988 | P39: =Rozvaha!I44 -> 49605 | Q39: =Rozvaha!J44 -> 53584
D40: =Rozvaha!F10 -> 2011 | E40: =Rozvaha!G10 -> 2012 | F40: =Rozvaha!H10 -> 2013 | G40: =Rozvaha!I10 -> 2014 | H40: =Rozvaha!J10 -> 2015 | L40: Tržby | M40: =VZZ!F13+VZZ!F17 -> 319777 | N40: =VZZ!G13+VZZ!G17 -> 359413 | O40: =VZZ!H13+VZZ!H17 -> 347988 | P40: =VZZ!I13+VZZ!I17 -> 409052 | Q40: =VZZ!J13+VZZ!J17 -> 488508
C41: EAT | D41: =VZZ!F72 -> 12377 | E41: =VZZ!G72 -> 20990 | F41: =VZZ!H72 -> 17767 | G41: =VZZ!I72 -> 26639 | H41: =VZZ!J72 -> 27417 | L41: Doba obratu zásob | M41: =M39/(M40/360) -> 48.79600472 | N41: =N39/(N40/360) -> 40.10138754 | O41: =O39/(O40/360) -> 42.40284148 | P41: =P39/(P40/360) -> 43.65655222 | Q41: =Q39/(Q40/360) -> 39.48807389
C42: Vlastní kapitál | D42: =Rozvaha!F85 -> 38494 | E42: =Rozvaha!G85 -> 61182 | F42: =Rozvaha!H85 -> 63949 | G42: =Rozvaha!I85 -> 88587 | H42: =Rozvaha!J85 -> 106004 | L42: D O B A O B R A T U P O H L E D Á V E K
C43: ROE | D43: =D41/D42 -> 0.3215306281 | E43: =E41/E42 -> 0.3430747606 | F43: =F41/F42 -> 0.2778307714 | G43: =G41/G42 -> 0.3007100365 | H43: =H41/H42 -> 0.2586411834
C44: R E N T A B I L I T A T R Ž E B | M44: =Rozvaha!F10 -> 2011 | N44: =Rozvaha!G10 -> 2012 | O44: =Rozvaha!H10 -> 2013 | P44: =Rozvaha!I10 -> 2014 | Q44: =Rozvaha!J10 -> 2015
L45: Pohledávky | M45: =Rozvaha!F51+Rozvaha!F60 -> 22051 | N45: =Rozvaha!G51+Rozvaha!G60 -> 30424 | O45: =Rozvaha!H51+Rozvaha!H60 -> 42591 | P45: =Rozvaha!I51+Rozvaha!I60 -> 56579 | Q45: =Rozvaha!J51+Rozvaha!J60 -> 61194
D46: =Rozvaha!F10 -> 2011 | E46: =Rozvaha!G10 -> 2012 | F46: =Rozvaha!H10 -> 2013 | G46: =Rozvaha!I10 -> 2014 | H46: =Rozvaha!J10 -> 2015 | L46: Tržby | M46: =VZZ!F13+VZZ!F17 -> 319777 | N46: =VZZ!G13+VZZ!G17 -> 359413 | O46: =VZZ!H13+VZZ!H17 -> 347988 | P46: =VZZ!I13+VZZ!I17 -> 409052 | Q46: =VZZ!J13+VZZ!J17 -> 488508
C47: EAT | D47: =VZZ!F72 -> 12377 | E47: =VZZ!G72 -> 20990 | F47: =VZZ!H72 -> 17767 | G47: =VZZ!I72 -> 26639 | H47: =VZZ!J72 -> 27417 | L47: Doba obratu pohledávek | M47: =M45/(M46/360) -> 24.8246747 | N47: =N45/(N46/360) -> 30.47368904 | O47: =O45/(O46/360) -> 44.06117452 | P47: =P45/(P46/360) -> 49.79425599 | Q47: =Q45/(Q46/360) -> 45.09617038
C48: Tržby | D48: =VZZ!F13+VZZ!F17 -> 319777 | E48: =VZZ!G13+VZZ!G17 -> 359413 | F48: =VZZ!H13+VZZ!H17 -> 347988 | G48: =VZZ!I13+VZZ!I17 -> 409052 | H48: =VZZ!J13+VZZ!J17 -> 488508 | L48: D O B A O B R A T U Z Á V A Z K Ů
C49: ROS | D49: =D47/D48 -> 0.03870509761 | E49: =E47/E48 -> 0.05840078127 | F49: =F47/F48 -> 0.05105635827 | G49: =G47/G48 -> 0.06512374955 | H49: =H47/H48 -> 0.05612395293
C50: R E N T A B I L I T A D L O U H O D O B Ě I N V E S T O V A N É H O K A P I T Á L U | M50: =Rozvaha!F10 -> 2011 | N50: =Rozvaha!G10 -> 2012 | O50: =Rozvaha!H10 -> 2013 | P50: =Rozvaha!I10 -> 2014 | Q50: =Rozvaha!J10 -> 2015
L51: Závazky | M51: =Rozvaha!F111+Rozvaha!F122 -> 71279 | N51: =Rozvaha!G111+Rozvaha!G122 -> 61892 | O51: =Rozvaha!H111+Rozvaha!H122 -> 68726 | P51: =Rozvaha!I111+Rozvaha!I122 -> 72170 | Q51: =Rozvaha!J111+Rozvaha!J122 -> 97171
D52: =Rozvaha!F10 -> 2011 | E52: =Rozvaha!G10 -> 2012 | F52: =Rozvaha!H10 -> 2013 | G52: =Rozvaha!I10 -> 2014 | H52: =Rozvaha!J10 -> 2015 | L52: Tržby | M52: =VZZ!F13+VZZ!F17 -> 319777 | N52: =VZZ!G13+VZZ!G17 -> 359413 | O52: =VZZ!H13+VZZ!H17 -> 347988 | P52: =VZZ!I13+VZZ!I17 -> 409052 | Q52: =VZZ!J13+VZZ!J17 -> 488508
C53: EBIT | D53: =VZZ!F72+VZZ!F61+VZZ!F67+VZZ!F55 -> 18750 | E53: =VZZ!G72+VZZ!G61+VZZ!G67+VZZ!G55 -> 26290 | F53: =VZZ!H72+VZZ!H61+VZZ!H67+VZZ!H55 -> 23587 | G53: =VZZ!I72+VZZ!I61+VZZ!I67+VZZ!I55 -> 34648 | H53: =VZZ!J72+VZZ!J61+VZZ!J67+VZZ!J55 -> 35299 | L53: Doba obratu závazků | M53: =M51/(M52/360) -> 80.24479559 | N53: =N51/(N52/360) -> 61.99308317 | O53: =O51/(O52/360) -> 71.09831373 | P53: =P51/(P52/360) -> 63.51564104 | Q53: =Q51/(Q52/360) -> 71.60898082
C54: Dlouhodobé závazky | D54: =Rozvaha!F111+Rozvaha!F135+Rozvaha!F106 -> 38668 | E54: =Rozvaha!G111+Rozvaha!G135+Rozvaha!G106 -> 31507 | F54: =Rozvaha!H111+Rozvaha!H135+Rozvaha!H106 -> 46024 | G54: =Rozvaha!I111+Rozvaha!I135+Rozvaha!I106 -> 43177 | H54: =Rozvaha!J111+Rozvaha!J135+Rozvaha!J106 -> 50756
C55: Vlastní kapitál | D55: =Rozvaha!F85 -> 38494 | E55: =Rozvaha!G85 -> 61182 | F55: =Rozvaha!H85 -> 63949 | G55: =Rozvaha!I85 -> 88587 | H55: =Rozvaha!J85 -> 106004
C56: ROCE | D56: =D53/(D54+D55) -> 0.2429952567 | E56: =E53/(E54+E55) -> 0.2836366775 | F56: =F53/(F54+F55) -> 0.2144799178 | G56: =G53/(G54+G55) -> 0.2629549801 | H56: =H53/(H54+H55) -> 0.225178617

Sheet Soustavy ukazatelů
B4: A L T M A N Ů V M O D E L | K4: I N D E X D Ů V Ě R Y H O D N O S T I I N 0 5
D6: =Rozvaha!F10 -> 2011 | E6: =Rozvaha!G10 -> 2012 | F6: =Rozvaha!H10 -> 2013 | G6: =Rozvaha!I10 -> 2014 | H6: =Rozvaha!J10 -> 2015 | M6: =Rozvaha!F10 -> 2011 | N6: =Rozvaha!G10 -> 2012 | O6: =Rozvaha!H10 -> 2013 | P6: =Rozvaha!I10 -> 2014 | Q6: =Rozvaha!J10 -> 2015
B7: A | D7: =D15/D33 -> 0.06469472747 | E7: =E15/E33 -> 0.1250020811 | F7: =F15/F33 -> 0.1551664257 | G7: =G15/G33 -> 0.2269723204 | H7: =H15/H33 -> 0.2330256417 | K7: A | M7: =M15/M18 -> 1.314521365 | N7: =N15/N18 -> 1.533210238 | O7: =O15/O18 -> 1.445048051 | P7: =P15/P18 -> 1.580956298 | Q7: =Q15/Q18 -> 1.558275367
B8: B | D8: =D18/D33 -> 0.08329827257 | E8: =E18/E33 -> 0.1389540982 | F8: =F18/F33 -> 0.1456248709 | G8: =G18/G33 -> 0.1901963175 | H8: =H18/H33 -> 0.2111554581 | K8: B | M8: =M21/M24 -> 14.62558502 | N8: =N21/N24 -> 17.78755074 | O8: =O21/O24 -> 17.69467367 | P8: =P21/P24 -> 22.36797934 | Q8: =Q21/Q24 -> 23.72244624
B9: C | D9: =D21/D33 -> 0.1143285712 | E9: =E21/E33 -> 0.1459023581 | F9: =F21/F33 -> 0.1107017478 | G9: =G21/G33 -> 0.1408283543 | H9: =H21/H33 -> 0.1175031374 | K9: C | M9: =M21/M15 -> 0.1143285712 | N9: =N21/N15 -> 0.1459023581 | O9: =O21/O15 -> 0.1107017478 | P9: =P21/P15 -> 0.1408283543 | Q9: =Q21/Q15 -> 0.1175031374
B10: D | D10: =D24/D30 -> 0.3085419322 | E10: =E24/E30 -> 0.5205915387 | F10: =F24/F30 -> 0.4337083834 | G10: =G24/G30 -> 0.5692483662 | H10: =H24/H30 -> 0.5498617617 | K10: D | M10: =M27/M15 -> 1.949847867 | N10: =N27/N15 -> 1.994644512 | O10: =O27/O15 -> 1.633225074 | P10: =P27/P15 -> 1.662610251 | Q10: =Q27/Q15 -> 1.626143025
B11: E | D11: =D27/D33 -> 1.986561058 | E11: =E27/E33 -> 2.007586479 | F11: =F27/F33 -> 1.647760339 | G11: =G27/G33 -> 1.679079787 | H11: =H27/H33 -> 1.640470159 | K11: E | M11: =M30/M33 -> 0.9307725367 | N11: =N30/N33 -> 0.9746910494 | O11: =O30/O33 -> 0.9961054199 | P11: =P30/P33 -> 1.130731742 | Q11: =Q30/Q33 -> 1.107486605
B12: Z-skóre | D12: =0.717*D7+0.847*D8+3.107*D9+0.42*D10+0.998*D11 -> 2.584334174 | E12: =0.717*E7+0.847*E8+3.107*E9+0.42*E10+0.998*E11 -> 2.882858992 | F12: =0.717*F7+0.847*F8+3.107*F9+0.42*F10+0.998*F11 -> 2.405171263 | G12: =0.717*G7+0.847*G8+3.107*G9+0.42*G10+0.998*G11 -> 2.676195073 | H12: =0.717*H7+0.847*H8+3.107*H9+0.42*H10+0.998*H11 -> 2.579141465 | K12: IN05 | M12: =0.13*M7+0.04*M8+3.97*M9+0.21*M10+0.09*M11 -> 1.703033186 | N12: =0.13*N7+0.04*N8+3.97*N9+0.21*N10+0.09*N11 -> 1.996649264 | O12: =0.13*O7+0.04*O8+3.97*O9+0.21*O10+0.09*O11 -> 1.767755885 | P12: =0.13*P7+0.04*P8+3.97*P9+0.21*P10+0.09*P11 -> 2.110246068 | Q12: =0.13*Q7+0.04*Q8+3.97*Q9+0.21*Q10+0.09*Q11 -> 2.059124932
B14: ČPK | D14: 2011 | E14: 2012 | F14: 2013 | G14: 2014 | H14: 2015 | K14: Aktiva | M14: 2011 | N14: 2012 | O14: 2013 | P14: 2014 | Q14: 2015
D15: =Rozvaha!F43-Rozvaha!F122 -> 10610 | E15: =Rozvaha!G43-Rozvaha!G122 -> 22524 | F15: =Rozvaha!H43-Rozvaha!H122 -> 33061 | G15: =Rozvaha!I43-Rozvaha!I122 -> 55842 | H15: =Rozvaha!J43-Rozvaha!J122 -> 70003 | M15: =Rozvaha!F13 -> 164001 | N15: =Rozvaha!G13 -> 180189 | O15: =Rozvaha!H13 -> 213068 | P15: =Rozvaha!I13 -> 246030 | Q15: =Rozvaha!J13 -> 300409
B17: Nerozdělený zisk | D17: 2011 | E17: 2012 | F17: 2013 | G17: 2014 | H17: 2015 | K17: Cizí kapitál | M17: 2011 | N17: 2012 | O17: 2013 | P17: 2014 | Q17: 2015
D18: =Rozvaha!F101 -> 13661 | E18: =Rozvaha!G101 -> 25038 | F18: =Rozvaha!H101 -> 31028 | G18: =Rozvaha!I101 -> 46794 | H18: =Rozvaha!J101 -> 63433 | M18: =Rozvaha!F105 -> 124761 | N18: =Rozvaha!G105 -> 117524 | O18: =Rozvaha!H105 -> 147447 | P18: =Rozvaha!I105 -> 155621 | Q18: =Rozvaha!J105 -> 192783
B20: EBIT | D20: 2011 | E20: 2012 | F20: 2013 | G20: 2014 | H20: 2015 | K20: EBIT | M20: 2011 | N20: 2012 | O20: 2013 | P20: 2014 | Q20: 2015
D21: =VZZ!F72+VZZ!F61+VZZ!F67+VZZ!F55 -> 18750 | E21: =VZZ!G72+VZZ!G61+VZZ!G67+VZZ!G55 -> 26290 | F21: =VZZ!H72+VZZ!H61+VZZ!H67+VZZ!H55 -> 23587 | G21: =VZZ!I72+VZZ!I61+VZZ!I67+VZZ!I55 -> 34648 | H21: =VZZ!J72+VZZ!J61+VZZ!J67+VZZ!J55 -> 35299 | M21: =VZZ!F72+VZZ!F61+VZZ!F67+VZZ!F55 -> 18750 | N21: =VZZ!G72+VZZ!G61+VZZ!G67+VZZ!G55 -> 26290 | O21: =VZZ!H72+VZZ!H61+VZZ!H67+VZZ!H55 -> 23587 | P21: =VZZ!I72+VZZ!I61+VZZ!I67+VZZ!I55 -> 34648 | Q21: =VZZ!J72+VZZ!J61+VZZ!J67+VZZ!J55 -> 35299
B23: Vlastní kapitál | D23: 2011 | E23: 2012 | F23: 2013 | G23: 2014 | H23: 2015 | K23: Nákladové úroky | M23: 2011 | N23: 2012 | O23: 2013 | P23: 2014 | Q23: 2015
D24: =Rozvaha!F85 -> 38494 | E24: =Rozvaha!G85 -> 61182 | F24: =Rozvaha!H85 -> 63949 | G24: =Rozvaha!I85 -> 88587 | H24: =Rozvaha!J85 -> 106004 | M24: =VZZ!F55 -> 1282 | N24: =VZZ!G55 -> 1478 | O24: =VZZ!H55 -> 1333 | P24: =VZZ!I55 -> 1549 | Q24: =VZZ!J55 -> 1488
B26: Celkový obrat | D26: 2011 | E26: 2012 | F26: 2013 | G26: 2014 | H26: 2015 | K26: Celkové výnosy | M26: 2011 | N26: 2012 | O26: 2013 | P26: 2014 | Q26: 2015
D27: =VZZ!F13+VZZ!F17+VZZ!F31+VZZ!F43 -> 325798 | E27: =VZZ!G13+VZZ!G17+VZZ!G31+VZZ!G43 -> 361745 | F27: =VZZ!H13+VZZ!H17+VZZ!H31+VZZ!H43 -> 351085 | G27: =VZZ!I13+VZZ!I17+VZZ!I31+VZZ!I43 -> 413104 | H27: =VZZ!J13+VZZ!J17+VZZ!J31+VZZ!J43 -> 492812 | M27: =VZZ!F13+VZZ!F17 -> 319777 | N27: =VZZ!G13+VZZ!G17 -> 359413 | O27: =VZZ!H13+VZZ!H17 -> 347988 | P27: =VZZ!I13+VZZ!I17 -> 409052 | Q27: =VZZ!J13+VZZ!J17 -> 488508
B29: Účetní hodnota celkových dluhů | D29: 2011 | E29: 2012 | F29: 2013 | G29: 2014 | H29: 2015 | K29: Oběžná aktiva | M29: 2011 | N29: 2012 | O29: 2013 | P29: 2014 | Q29: 2015
D30: =Rozvaha!F105 -> 124761 | E30: =Rozvaha!G105 -> 117524 | F30: =Rozvaha!H105 -> 147447 | G30: =Rozvaha!I105 -> 155621 | H30: =Rozvaha!J105 -> 192783 | M30: =Rozvaha!F43 -> 80133 | N30: =Rozvaha!G43 -> 83840 | O30: =Rozvaha!H43 -> 101028 | P30: =Rozvaha!I43 -> 127144 | Q30: =Rozvaha!J43 -> 157293
B32: Aktiva | D32: 2011 | E32: 2012 | F32: 2013 | G32: 2014 | H32: 2015 | K32: Krátkodobé závazky a úvěry | M32: 2011 | N32: 2012 | O32: 2013 | P32: 2014 | Q32: 2015
D33: =Rozvaha!F13 -> 164001 | E33: =Rozvaha!G13 -> 180189 | F33: =Rozvaha!H13 -> 213068 | G33: =Rozvaha!I13 -> 246030 | H33: =Rozvaha!J13 -> 300409 | M33: =Rozvaha!F122+Rozvaha!F136+Rozvaha!F137 -> 86093 | N33: =Rozvaha!G122+Rozvaha!G136+Rozvaha!G137 -> 86017 | O33: =Rozvaha!H122+Rozvaha!H136+Rozvaha!H137 -> 101423 | P33: =Rozvaha!I122+Rozvaha!I136+Rozvaha!I137 -> 112444 | Q33: =Rozvaha!J122+Rozvaha!J136+Rozvaha!J137 -> 142027

Sheet Regresní analýza
C4: Č I S T Ý P R A C O V N Í K A P I T Á L ( Č P K ) | K4: R E N T A B I L I T A C E L K O V É H O V L O Ž E N É H O K A P I TÁ L U | S4: O B R A T C E L K O V Ý CH A K T I V
C6: i | D6: Roky | E6: yi (kč) | F6: 1di(y) | G6: ki(y) | H6: Regresní přímka | K6: i | L6: Roky | M6: yi (%) | N6: 1di(y) | O6: ki(y) | P6: Regresní přímka | S6: i | T6: Roky | U6: yi | V6: 1di(y) | W6: ki(y) | X6: Regresní přímka
C7: 1 | D7: 2011 | E7: 10610 | F7: - | G7: - | H7: =F19+F18 -> 7987.2 | K7: 1 | L7: 2011 | M7: 13.37 | N7: - | O7: - | P7: =N19+N18 -> 15.072 | S7: 1 | T7: 2011 | U7: 1.9 | V7: - | W7: - | X7: =V19+V18 -> 1.94
C8: 2 | D8: 2012 | E8: 22524 | F8: =E8-E7 -> 11914 | G8: =E8/E7 -> 2.122902922 | H8: =(F19*2)+F18 -> 23197.6 | K8: 2 | L8: 2012 | M8: 16.96 | N8: =M8-M7 -> 3.59 | O8: =M8/M7 -> 1.268511593 | P8: =(N19*2)+N18 -> 14.573 | S8: 2 | T8: 2012 | U8: 2 | V8: =U8-U7 -> 0.1 | W8: =U8/U7 -> 1.052631579 | X8: =(V19*2)+V18 -> 1.85
C9: 3 | D9: 2013 | E9: 33061 | F9: =E9-E8 -> 10537 | G9: =E9/E8 -> 1.467812112 | H9: =(F19*3)+F18 -> 38408 | K9: 3 | L9: 2013 | M9: 13.57 | N9: =M9-M8 -> -3.39 | O9: =M9/M8 -> 0.8001179245 | P9: =(N19*3)+N18 -> 14.074 | S9: 3 | T9: 2013 | U9: 1.6 | V9: =U9-U8 -> -0.4 | W9: =U9/U8 -> 0.8 | X9: =(V19*3)+V18 -> 1.76
C10: 4 | D10: 2014 | E10: 55842 | F10: =E10-E9 -> 22781 | G10: =E10/E9 -> 1.689059617 | H10: =(F19*4)+F18 -> 53618.4 | K10: 4 | L10: 2014 | M10: 14.23 | N10: =M10-M9 -> 0.66 | O10: =M10/M9 -> 1.048636699 | P10: =(N19*4)+N18 -> 13.575 | S10: 4 | T10: 2014 | U10: 1.7 | V10: =U10-U9 -> 0.1 | W10: =U10/U9 -> 1.0625 | X10: =(V19*4)+V18 -> 1.67
C11: 5 | D11: 2015 | E11: 70003 | F11: =E11-E10 -> 14161 | G11: =E11/E10 -> 1.253590487 | H11: =(F19*5)+F18 -> 68828.8 | K11: 5 | L11: 2015 | M11: 12.24 | N11: =M11-M10 -> -1.99 | O11: =M11/M10 -> 0.860154603 | P11: =(N19*5)+N18 -> 13.076 | S11: 5 | T11: 2015 | U11: 1.6 | V11: =U11-U10 -> -0.1 | W11: =U11/U10 -> 0.9411764706 | X11: =(V19*5)+V18 -> 1.58
C13: Průměr první diference | F13: =(E11-E7)/4 -> 14848.25 | K13: Průměr první diference | N13: =(M11-M7)/4 -> -0.2825 | S13: Průměr první diference | V13: =(U11-U7)/4 -> -0.075
C14: Průměrný koeficient růstu | F14: =(E11/E7)^(1/4) -> 1.602692915 | K14: Průměrný koeficient růstu | N14: =(M11/M7)^(1/4) -> 0.9781658637 | S14: Průměrný koeficient růstu | V14: =(U11/U7)^(1/4) -> 0.9579472509
C16: Výběrový průměr x | F16: 3 | K16: Výběrový průměr x | N16: 3 | S16: Výběrový průměr x | V16: 3
C17: Výběrový průměr y | F17: =SUM(E7:E11)/5 -> 38408 | K17: Výběrový průměr y | N17: =SUM(M7:M11)/5 -> 14.074 | S17: Výběrový průměr y | V17: =SUM(U7:U11)/5 -> 1.76
C18: b1 | F18: =(SUM(E7:E11)-15*F19)/(5) -> -7223.2 | K18: b1 | N18: =(SUM(M7:M11)-15*N19)/(5) -> 15.571 | S18: b1 | V18: =(SUM(U7:U11)-15*V19)/(5) -> 2.03
C19: b2 | F19: =(((E7+2*E8+3*E9+4*E10+5*E11)-5*3*F17)/(55-(5*3*3))) -> 15210.4 | K19: b2 | N19: =(((M7+2*M8+3*M9+4*M10+5*M11)-5*3*N17)/(55-(5*3*3))) -> -0.499 | S19: b2 | V19: =(((U7+2*U8+3*U9+4*U10+5*U11)-5*3*V17)/(55-(5*3*3))) -> -0.09
C21: Rovnice přímky | F21: η(𝒳) | G21: =F18 -> -7223.2 | H21: =F19 -> 15210.4 | I21: x | K21: Rovnice přímky | N21: η(𝒳) | O21: =N18 -> 15.571 | P21: =N19 -> -0.499 | Q21: x | S21: Rovnice přímky | V21: η(𝒳) | W21: =V18 -> 2.03 | X21: =V19 -> -0.09 | Y21: x
C41: C E L K O V Á Z A D L U Ž E N O S T | K41: O K A M Ž I T Á L I K V I D I T A | S41: A L T M A N Ů V I N D E X ( Z - S C O R E )
C43: i | D43: Roky | E43: yi (kč) | F43: 1di(y) | G43: ki(y) | H43: Regresní přímka | K43: i | L43: Roky | M43: yi (j) | N43: 1di(y) | O43: ki(y) | P43: Regresní přímka | S43: i | T43: Roky | U43: yi (kč) | V43: 1di(y) | W43: ki(y) | X43: Regresní přímka
C44: 1 | D44: 2011 | E44: 76.07 | F44: - | G44: - | H44: =F56+F55 -> 72.736 | K44: 1 | L44: 2011 | M44: 0.2 | N44: - | O44: - | P44: =N56+N55 -> 0.16 | S44: 1 | T44: 2011 | U44: 2.644 | V44: - | W44: - | X44: =V56+V55 -> 2.7466
C45: 2 | D45: 2012 | E45: 65.22 | F45: =E45-E44 -> -10.85 | G45: =E45/E44 -> 0.8573682135 | H45: =(F56*2)+F55 -> 70.159 | K45: 2 | L45: 2012 | M45: 0.2 | N45: =M45-M44 -> 0 | O45: =M45/M44 -> 1 | P45: =(N56*2)+N55 -> 0.23 | S45: 2 | T45: 2012 | U45: 2.956 | V45: =U45-U44 -> 0.312 | W45: =U45/U44 -> 1.118003026 | X45: =(V56*2)+V55 -> 2.7091
C46: 3 | D46: 2013 | E46: 69.2 | F46: =E46-E45 -> 3.98 | G46: =E46/E45 -> 1.061024226 | H46: =(F56*3)+F55 -> 67.582 | K46: 3 | L46: 2013 | M46: 0.3 | N46: =M46-M45 -> 0.1 | O46: =M46/M45 -> 1.5 | P46: =(N56*3)+N55 -> 0.3 | S46: 3 | T46: 2013 | U46: 2.483 | V46: =U46-U45 -> -0.473 | W46: =U46/U45 -> 0.8399864682 | X46: =(V56*3)+V55 -> 2.6716
C47: 4 | D47: 2014 | E47: 63.25 | F47: =E47-E46 -> -5.95 | G47: =E47/E46 -> 0.914017341 | H47: =(F56*4)+F55 -> 65.005 | K47: 4 | L47: 2014 | M47: 0.3 | N47: =M47-M46 -> 0 | O47: =M47/M46 -> 1 | P47: =(N56*4)+N55 -> 0.37 | S47: 4 | T47: 2014 | U47: 2.681 | V47: =U47-U46 -> 0.198 | W47: =U47/U46 -> 1.079742247 | X47: =(V56*4)+V55 -> 2.6341
C48: 5 | D48: 2015 | E48: 64.17 | F48: =E48-E47 -> 0.92 | G48: =E48/E47 -> 1.014545455 | H48: =(F56*5)+F55 -> 62.428 | K48: 5 | L48: 2015 | M48: 0.5 | N48: =M48-M47 -> 0.2 | O48: =M48/M47 -> 1.666666667 | P48: =(N56*5)+N55 -> 0.44 | S48: 5 | T48: 2015 | U48: 2.594 | V48: =U48-U47 -> -0.087 | W48: =U48/U47 -> 0.9675494219 | X48: =(V56*5)+V55 -> 2.5966
C50: Průměr první diference | F50: =(E48-E44)/4 -> -2.975 | K50: Průměr první diference | N50: =(M48-M44)/4 -> 0.075 | S50: Průměr první diference | V50: =(U48-U44)/4 -> -0.0125
C51: Průměrný koeficient růstu | F51: =(E48/E44)^(1/4) -> 0.9583621557 | K51: Průměrný koeficient růstu | N51: =(M48/M44)^(1/4) -> 1.25743343 | S51: Průměrný koeficient růstu | V51: =(U48/U44)^(1/4) -> 0.9952384134
C53: Výběrový průměr x | F53: 3 | K53: Výběrový průměr x | N53: 3 | S53: Výběrový průměr x | V53: 3
C54: Výběrový průměr y | F54: =SUM(E44:E48)/5 -> 67.582 | K54: Výběrový průměr y | N54: =SUM(M44:M48)/5 -> 0.3 | S54: Výběrový průměr y | V54: =SUM(U44:U48)/5 -> 2.6716
C55: b1 | F55: =(SUM(E44:E48)-15*F56)/(5) -> 75.313 | K55: b1 | N55: =(SUM(M44:M48)-15*N56)/(5) -> 0.09 | S55: b1 | V55: =(SUM(U44:U48)-15*V56)/(5) -> 2.7841
C56: b2 | F56: =(((E44+2*E45+3*E46+4*E47+5*E48)-5*3*F54)/(55-(5*3*3))) -> -2.577 | K56: b2 | N56: =(((M44+2*M45+3*M46+4*M47+5*M48)-5*3*N54)/(55-(5*3*3))) -> 0.07 | S56: b2 | V56: =(((U44+2*U45+3*U46+4*U47+5*U48)-5*3*V54)/(55-(5*3*3))) -> -0.0375
C58: Rovnice přímky | F58: η(𝒳) | G58: =F55 -> 75.313 | H58: =F56 -> -2.577 | I58: x | K58: Rovnice přímky | N58: η(𝒳) | O58: =N55 -> 0.09 | P58: =N56 -> 0.07 | Q58: x | S58: Rovnice přímky | V58: η(𝒳) | W58: =V55 -> 2.7841 | X58: =V56 -> -0.0375 | Y58: x
